bitfinex-derivatives/quotes_SOLF0:USTF0_20250923
["timestamp","ask_amount","ask_price","bid_price","bid_amount"]
[1758663629125,1.22,216.1,216.03,7.22]
[1758663630827,1.22,216.1,216.04,7.22]
[1758663632733,5.3829,216.13,216.05,7.22]
[1758663633433,5.3829,216.13,216.06,7.22]
[1758663634137,5.3829,216.13,216.07,7.22]
[1758663634936,1.22,216.13,216.07,7.22]
[1758663638941,1.22,216.13,216.08,7.22]
[1758663639241,4.1625,216.15,216.08,7.22]
[1758663640037,4.1622,216.17,216.09,7.22]
[1758663641140,5.3822,216.17,216.09,7.22]
[1758663641342,5.3822,216.17,216.1,7.22]
[1758663643041,5.3824,216.16,216.1,7.22]
[1758663643241,1.22,216.18,216.07,7.22]
[1758663643441,64.7417,216.18,216.07,7.22]
[1758663643645,1.22,216.17,216.07,7.22]
[1758663643946,64.7417,216.18,216.07,7.22]
[1758663644443,4.163,216.13,216.07,7.22]
[1758663646748,1.22,216.11,216.07,7.22]
[1758663646944,1.22,216.11,216.04,7.22]
[1758663648845,5.3834,216.11,216.04,7.22]
[1758663656555,4.1636,216.1,216.04,7.22]
[1758663659257,4.1637,216.09,216.04,7.22]
[1758663659460,5.3737,216.09,216.03,7.78]
[1758663660657,1.21,216.07,216.03,7.78]
[1758663660857,1.21,216.07,216.02,7.78]
[1758663661255,5.3739,216.08,216.02,7.78]
[1758663670260,1.21,216.08,216.02,7.78]
[1758663670862,5.3739,216.08,216.02,7.78]
[1758663672164,1.21,216.08,216.02,7.78]
[1758663674061,82.5,216.17,216.02,7.78]
[1758663674264,82.5,216.17,216.01,5.51104222]
[1758663674265,1.19,216.19,216.11,1.66380933]
[1758663674758,5.3517,216.19,216.12,7.65]
[1758663675261,1.19,216.18,216.12,7.65]
[1758663678070,4.1617,216.19,216.09,9.31380933]
[1758663678270,1.19,216.17,216.09,9.31380933]
[1758663680074,5.18699221,216.47,216.27,64.713]
[1758663680277,1.19,216.48,216.38,1.66380933]
[1758663680467,1.19,216.48,216.39,11.46087929]
[1758663680667,1.19,216.48,216.4,8.3512721]
[1758663680882,4.1564,216.47,216.41,12.4353456]
[1758663681061,1.19,216.46,216.42,8.62446631]
[1758663681263,1.19,216.52,216.44,7.65]
[1758663681463,1.19,216.52,216.45,8.62446631]
[1758663681672,1.19,216.52,216.46,8.62446631]
[1758663681872,1.19,216.48,216.39,7.65]
[1758663682074,119.01,216.48,216.39,7.65]
[1758663682776,123.1661,216.48,216.39,7.65]
[1758663683968,124.82990933,216.48,216.39,7.65]
[1758663685976,64.6413,216.52,216.34,7.13]
[1758663686279,64.6413,216.52,216.37,7.13]
[1758663686280,1.19,216.48,216.37,7.13]
[1758663686973,5.3463,216.47,216.37,8.79380933]
[1758663687373,115.9,216.46,216.37,8.79380933]
[1758663688870,4.1567,216.45,216.37,8.79380933]
[1758663689675,121.6367,216.45,216.37,8.79380933]
[1758663690272,121.5967,216.45,216.37,8.79380933]
[1758663691880,117.44,216.45,216.37,8.79380933]
[1758663693882,117.44,216.45,216.38,4.35075797]
[1758663694082,117.44,216.45,216.39,4.35075797]
[1758663694282,1.19,216.44,216.4,4.35075797]
[1758663694580,1.19,216.44,216.37,8.79380933]
[1758663694780,1.19,216.44,216.38,4.34877567]
[1758663694981,1.19,216.44,216.39,11.47877567]
[1758663695283,1.19,216.44,216.4,4.34877567]
[1758663695477,1.19,216.44,216.31,3.82081406]
[1758663695478,1.19,216.43,216.41,4.34877567]
[1758663695680,5.3469,216.44,216.36,7.13]
[1758663695876,5.3469,216.44,216.37,4.34661211]
[1758663696071,4.1573,216.42,216.38,4.34661211]
[1758663696277,4.1573,216.42,216.39,4.34661211]
[1758663696478,1.19,216.41,216.36,7.13]
[1758663696672,1.19,216.41,216.37,4.34668285]
[1758663696883,4.1573,216.42,216.36,7.13]
[1758663697180,4.1578,216.4,216.32,1.66380933]
[1758663697486,117.18,216.39,216.32,1.66380933]
[1758663697685,117.18,216.39,216.33,3.74927581]
[1758663697986,117.18,216.39,216.32,1.66380933]
[1758663699187,1.19,216.38,216.32,1.66380933]
[1758663701387,66.31600933,216.48,216.35,1.66380933]
[1758663701581,117.02,216.47,216.35,1.66380933]
[1758663702688,2.85380933,216.46,216.35,1.66380933]
[1758663702886,4.157,216.44,216.36,7.13]
[1758663703785,5.347,216.44,216.37,3.79320948]
[1758663704086,5.347,216.44,216.36,7.13]
[1758663704293,4.1572,216.43,216.37,3.79360784]
[1758663704586,4.1572,216.43,216.36,7.13]
[1758663704786,4.1572,216.43,216.37,3.79360784]
[1758663704989,1.19,216.42,216.32,7.13]
[1758663705184,116.98,216.41,216.34,7.13]
[1758663705389,116.98,216.41,216.35,3.7937877]
[1758663705692,116.98,216.41,216.37,7.13]
[1758663706388,118.17,216.41,216.37,7.13]
[1758663709192,118.17,216.41,216.38,3.79903689]
[1758663709390,118.17,216.41,216.37,7.13]
[1758663709593,118.17,216.41,216.38,3.79903689]
[1758663709792,118.17,216.41,216.37,7.13]
[1758663710091,118.17,216.41,216.38,3.79903689]
[1758663710293,118.17,216.41,216.37,7.13]
[1758663710494,118.17,216.41,216.38,3.80088219]
[1758663710692,118.17,216.41,216.37,7.13]
[1758663710893,118.17,216.41,216.38,3.80088219]
[1758663711192,1.19,216.4,216.39,3.80271111]
[1758663711888,1.19,216.41,216.39,3.80271111]
[1758663712094,116.58,216.4,216.34,3.82081406]
[1758663712296,1.19,216.39,216.35,10.93524083]
[1758663712495,1.19,216.39,216.36,10.93524083]
[1758663712694,1.19,216.39,216.37,3.80524083]
[1758663712899,1.19,216.39,216.38,3.80524083]
[1758663714189,117.76,216.4,216.38,3.80524083]
[1758663714386,1.18,216.4,216.39,3.80524083]
[1758663714590,117.64,216.4,216.39,3.80524083]
[1758663716595,117.56,216.4,216.39,3.80524083]
[1758663717292,4.1569,216.44,216.39,3.80524083]
[1758663717497,1.18,216.45,216.4,3.80524083]
[1758663717698,1.18,216.42,216.41,3.80524083]
[1758663720200,117.42,216.42,216.41,3.80524083]
[1758663721400,5.3375,216.41,216.39,3.80403718]
[1758663721703,5.3375,216.41,216.4,3.82956666]
[1758663722401,5.3375,216.41,216.4,7.63360384]
[1758663722600,5.3375,216.41,216.4,3.82956666]
[1758663722803,5.3375,216.41,216.4,7.63360384]
[1758663723103,5.3375,216.41,216.4,3.82956666]
[1758663723306,5.3375,216.41,216.4,7.75590644]
[1758663723897,5.3375,216.41,216.4,3.82956666]
[1758663724797,4.1571,216.44,216.41,7.03]
[1758663725003,116.04,216.43,216.42,7.66358082]
[1758663725200,116.04,216.43,216.42,3.82956666]
[1758663725504,116.02,216.43,216.42,3.82956666]
[1758663728399,117.08,216.43,216.42,3.82956666]
[1758663729303,115.88,216.43,216.42,3.82956666]
[1758663730003,117.06,216.43,216.42,3.82956666]
[1758663730504,1.18,216.43,216.42,3.82956666]
[1758663730697,117.06,216.43,216.42,3.82956666]
[1758663732497,1.18,216.43,216.42,3.82956666]
[1758663732698,115.82,216.43,216.42,3.82956666]
[1758663734003,119.8971,216.44,216.42,3.82956666]
[1758663734301,119.8971,216.44,216.43,3.82956666]
[1758663734496,121.0871,216.44,216.43,3.82956666]
[1758663735795,120.9671,216.44,216.43,3.82956666]
[1758663736203,120.9671,216.44,216.4,7.19]
[1758663736403,120.9671,216.44,216.41,3.6787533]
[1758663736603,120.9671,216.44,216.42,3.6787533]
[1758663736803,120.9671,216.44,216.38,7.19]
[1758663737102,119.7771,216.44,216.4,7.19]
[1758663737301,1.19,216.43,216.41,3.67875679]
[1758663737496,1.19,216.43,216.42,3.67875679]
[1758663740405,119.7771,216.44,216.42,3.67875679]
[1758663740606,120.9671,216.44,216.43,3.67875679]
[1758663741298,119.7771,216.44,216.43,3.67875679]
[1758663742406,4.1571,216.44,216.43,10.86875679]
[1758663742707,119.5571,216.44,216.43,3.67875679]
[1758663743009,120.7471,216.44,216.43,3.67875679]
[1758663744404,5.3471,216.44,216.43,3.67875679]
[1758663744606,120.6471,216.44,216.43,3.67875679]
[1758663744901,4.1571,216.44,216.43,3.67875679]
[1758663745098,4.1571,216.44,216.43,11.43875679]
[1758663745510,4.1571,216.44,216.43,3.67875679]
[1758663746406,119.3971,216.44,216.43,3.67875679]
[1758663746802,4.1571,216.44,216.43,3.67875679]
[1758663747203,120.5571,216.44,216.43,3.67875679]
[1758663747399,5.3571,216.44,216.43,3.67875679]
[1758663747604,120.5571,216.44,216.43,3.67875679]
[1758663748105,4.1571,216.44,216.43,3.67875679]
[1758663748401,119.3171,216.44,216.43,3.67875679]
[1758663749107,120.5171,216.44,216.43,3.67875679]
[1758663750305,5.3571,216.44,216.43,3.67875679]
[1758663750501,4.1571,216.44,216.43,3.67875679]
[1758663750709,120.4371,216.44,216.43,3.67875679]
[1758663750911,5.3571,216.44,216.43,3.67875679]
[1758663751105,120.4371,216.44,216.43,3.67875679]
[1758663751306,5.3571,216.44,216.43,3.67875679]
[1758663751505,120.4171,216.44,216.43,3.67875679]
[1758663752706,120.4171,216.44,216.43,3.68450824]
[1758663753307,1.2,216.55,216.49,7.76]
[1758663753505,1.2,216.55,216.51,7.76]
[1758663754008,1.2,216.55,216.52,3.68222291]
[1758663754209,1.2,216.55,216.53,4.0565512]
[1758663754406,116.9,216.54,216.51,7.76]
[1758663754611,116.86,216.54,216.52,4.05244111]
[1758663754811,116.86,216.54,216.53,4.05244111]
[1758663755313,116.84,216.54,216.51,7.76]
[1758663755514,116.84,216.54,216.52,4.04922692]
[1758663755813,116.84,216.54,216.53,4.04922692]
[1758663756210,1.2,216.55,216.53,4.04922692]
[1758663756409,116.76,216.54,216.51,7.76]
[1758663756613,116.76,216.54,216.52,7.78197563]
[1758663756912,116.76,216.54,216.53,4.04680962]
[1758663757112,1.2,216.55,216.51,7.76]
[1758663757315,1.2,216.55,216.52,11.8062595]
[1758663757513,116.72,216.54,216.47,7.76]
[1758663757711,116.72,216.54,216.48,7.78224818]
[1758663757918,117.92,216.54,216.49,7.78224818]
[1758663758114,117.92,216.54,216.51,7.76]
[1758663758318,117.92,216.54,216.46,10.58354997]
[1758663758319,117.92,216.54,216.52,11.80690584]
[1758663758519,116.72,216.54,216.52,7.76]
[1758663760628,4.1546,216.56,216.52,7.76]
[1758663760919,45.71162084,216.7,216.54,7.76]
[1758663761126,1.2,216.64,216.54,7.76]
[1758663761321,116.52,216.65,216.54,7.76]
[1758663761524,1.2,216.64,216.55,4.04037322]
[1758663761721,116.54,216.63,216.54,7.76]
[1758663762030,4.1538,216.61,216.54,7.76]
[1758663762229,116.54,216.6,216.54,7.76]
[1758663763921,4.1538,216.61,216.51,7.76]
[1758663764123,64.72,216.6,216.53,7.76]
[1758663764934,4.1538,216.61,216.53,7.76]
[1758663765135,116.42,216.6,216.53,7.76]
[1758663765728,116.38,216.59,216.53,7.76]
[1758663765929,116.36,216.59,216.53,7.76]
[1758663766730,4.1538,216.61,216.53,7.76]
[1758663767034,104.5,216.6,216.53,7.76]
[1758663767236,116.3,216.6,216.53,7.76]
[1758663768026,4.1538,216.61,216.53,7.76]
[1758663768331,99.8,216.6,216.53,7.76]
[1758663768634,4.1538,216.61,216.53,7.76]
[1758663768835,116.24,216.6,216.53,7.76]
[1758663769136,4.154,216.6,216.53,7.76]
[1758663769335,120.374,216.6,216.53,7.76]
[1758663771831,5.354,216.6,216.53,7.76]
[1758663772135,121.434,216.6,216.53,7.76]
[1758663772732,1.2,216.57,216.51,7.76]
[1758663772925,1.2,216.57,216.52,4.0295794]
[1758663773127,4.1543,216.58,216.51,7.76]
[1758663773333,4.1543,216.58,216.53,7.72]
[1758663773533,4.1543,216.58,216.51,7.72]
[1758663773729,4.1543,216.58,216.53,7.72]
[1758663773934,4.1543,216.58,216.51,7.72]
[1758663774129,4.1543,216.58,216.53,7.72]
[1758663774335,4.1543,216.58,216.51,7.72]
[1758663776637,4.1543,216.58,216.53,7.72]
[1758663776836,4.1543,216.58,216.52,1.65646191]
[1758663777036,4.1543,216.58,216.53,7.72]
[1758663777233,4.1543,216.58,216.52,1.65646191]
[1758663777434,4.1543,216.58,216.53,7.72]
[1758663777637,5.3743,216.58,216.53,7.72]
[1758663777837,5.3743,216.58,216.52,1.65646191]
[1758663778040,5.3743,216.58,216.53,7.72]
[1758663778241,5.3743,216.58,216.52,1.65646191]
[1758663778935,4.1543,216.58,216.53,7.72]
[1758663779137,1.22,216.57,216.52,1.65646191]
[1758663779537,1.22,216.57,216.53,7.72]
[1758663779735,1.22,216.56,216.49,7.72]
[1758663780040,1.22,216.56,216.5,7.7550948]
[1758663780241,1.22,216.59,216.51,4.01167487]
[1758663780436,1.22,216.59,216.5,7.72]
[1758663780637,115.98,216.6,216.51,4.01223948]
[1758663780941,5.3747,216.56,216.5,7.72]
[1758663781136,1.22,216.55,216.51,4.01223948]
[1758663781345,1.22,216.55,216.5,7.72]
[1758663781642,1.22,216.55,216.51,11.73257376]
[1758663781842,1.22,216.55,216.49,1.65646191]
[1758663782142,1.22,216.55,216.51,7.72]
[1758663782437,1.22,216.55,216.5,7.72]
[1758663782643,1.22,216.55,216.51,11.73298991]
[1758663782942,1.22,216.55,216.49,5.81226191]
[1758663783137,1.22,216.55,216.52,1.65646191]
[1758663783337,1.22,216.55,216.52,9.37646191]
[1758663783942,1.22,216.55,216.52,7.72]
[1758663784240,1.22,216.55,216.52,9.37646191]
[1758663786639,1.22,216.59,216.53,7.72]
[1758663786839,1.22,216.58,216.53,7.72]
[1758663787645,115.48,216.6,216.53,7.72]
[1758663787941,1.22,216.59,216.53,7.72]
[1758663790236,115.42,216.58,216.51,1.65646191]
[1758663790437,116.64,216.58,216.52,15.49300631]
[1758663790636,116.64,216.58,216.53,4.02103875]
[1758663790838,1.22,216.57,216.54,7.72]
[1758663791443,115.36,216.59,216.54,7.72]
[1758663791639,1.22,216.58,216.54,7.72]
[1758663792141,116.56,216.58,216.52,7.72]
[1758663792337,116.56,216.58,216.54,7.72]
[1758663792542,116.56,216.58,216.52,7.77]
[1758663792844,116.5,216.58,216.53,7.77882824]
[1758663793050,116.5,216.58,216.54,7.77]
[1758663794251,1.22,216.58,216.52,7.77]
[1758663794446,1.22,216.58,216.51,1.65646191]
[1758663794447,116.48,216.58,216.53,7.79108682]
[1758663794644,115.26,216.58,216.54,11.79737606]
[1758663794838,115.26,216.58,216.54,7.77]
[1758663795042,119.3741,216.59,216.52,7.77]
[1758663795349,119.3741,216.59,216.53,7.79405366]
[1758663795542,119.3741,216.59,216.54,15.56405366]
[1758663795741,119.3741,216.59,216.55,4.02985452]
[1758663795942,119.3741,216.59,216.54,7.77]
[1758663796145,119.3741,216.59,216.55,4.02984572]
[1758663796444,119.3741,216.59,216.52,7.77]
[1758663796445,4.1541,216.59,216.52,7.77]
[1758663796653,4.1541,216.59,216.53,7.80075334]
[1758663796948,4.3341,216.59,216.55,7.77]
[1758663797150,0.18,216.58,216.56,4.036953]
[1758663797349,0.18,216.58,216.55,7.77]
[1758663797545,4.1541,216.59,216.56,4.03736442]
[1758663797852,115.1,216.6,216.58,7.77]
[1758663798548,115.28,216.6,216.58,7.77]
[1758663798747,0.18,216.6,216.58,7.77]
[1758663798954,0.80386223,216.65,216.55,7.77]
[1758663798955,115.26,216.63,216.55,7.77]
[1758663799141,0.18,216.63,216.56,7.82235631]
[1758663799344,115.26,216.63,216.57,7.82235631]
[1758663799547,115.08,216.63,216.58,7.82235631]
[1758663799749,4.3336,216.62,216.55,7.77]
[1758663800044,4.1536,216.62,216.57,7.77]
[1758663800351,4.1536,216.62,216.59,7.77]
[1758663800853,4.1536,216.62,216.6,4.04467232]
[1758663801040,13.92675719,216.64,216.56,4.1546]
[1758663801245,116.073,216.65,216.58,7.77]
[1758663801444,116.073,216.65,216.59,7.82390595]
[1758663801648,116.253,216.65,216.61,7.77]
[1758663802148,4.1532,216.64,216.61,7.77]
[1758663802355,0.18,216.68,216.57,7.77]
[1758663802550,115.0,216.67,216.59,7.77]
[1758663802852,4.1528,216.66,216.6,7.82345639]
[1758663803051,4.3328,216.66,216.62,7.77]
[1758663803251,4.3328,216.66,216.63,4.04377683]
[1758663803252,119.3328,216.66,216.63,4.04377683]
[1758663803452,4.1528,216.66,216.64,11.06377683]
[1758663803754,114.98,216.66,216.65,4.0425768]
[1758663804053,115.16,216.67,216.65,4.0425768]
[1758663804255,0.18,216.67,216.66,4.05050489]
[1758663804754,133.21539565,216.7,216.67,7.02]
[1758663805057,119.352,216.7,216.68,4.05050489]
[1758663805250,119.352,216.7,216.67,7.02]
[1758663805454,119.352,216.7,216.68,4.04532515]
[1758663805644,0.18,216.7,216.69,4.04508492]
[1758663805850,4.1516,216.72,216.69,4.04508492]
[1758663806053,1.65646191,216.75,216.71,7.02]
[1758663806054,129.27476705,216.75,216.71,7.02]
[1758663806249,64.5409,216.86,216.6,3.81816569]
[1758663806250,0.18,216.83,216.72,14.78464018]
[1758663806447,0.18,216.83,216.74,8.67646191]
[1758663806644,0.18,216.83,216.75,7.76464018]
[1758663806852,0.18,216.8,216.76,7.76464018]
[1758663807052,0.18,216.8,216.77,4.03748706]
[1758663807248,0.18,216.8,216.78,4.03748706]
[1758663807443,0.18,216.8,216.79,4.03748706]
[1758663807444,116.64,216.8,216.79,4.03748706]
[1758663808151,64.5716,216.75,216.63,3.81816569]
[1758663808356,116.62,216.74,216.66,1.65646191]
[1758663808651,4.3322,216.69,216.67,4.3785264]
[1758663808955,121.6722,216.69,216.68,4.3785264]
[1758663810149,4.1522,216.69,216.68,4.3785264]
[1758663810352,121.4122,216.69,216.68,4.3785264]
[1758663810556,117.26,216.69,216.63,8.67646191]
[1758663810756,117.26,216.69,216.65,7.02]
[1758663810954,117.26,216.69,216.66,4.05294823]
[1758663811154,117.26,216.69,216.65,7.02]
[1758663811353,117.26,216.69,216.66,4.05144552]
[1758663811555,0.18,216.72,216.66,7.02]
[1758663811759,117.24,216.69,216.66,7.02]
[1758663813760,117.42,216.69,216.66,7.02]
[1758663814358,117.42,216.69,216.63,1.65646191]
[1758663814556,117.42,216.69,216.65,7.02]
[1758663814955,117.1,216.69,216.64,7.02]
[1758663815157,0.18,216.68,216.65,4.04925282]
[1758663815362,121.2523,216.69,216.63,1.65646191]
[1758663815563,0.18,216.68,216.64,4.04886269]
[1758663815760,121.4323,216.69,216.63,1.65646191]
[1758663815961,4.3323,216.69,216.64,11.0688654]
[1758663816268,117.2,216.68,216.64,7.02]
[1758663816657,0.18,216.67,216.63,1.65646191]
[1758663817062,0.18,216.67,216.63,8.67646191]
[1758663817364,0.18,216.67,216.63,7.02]
[1758663818065,121.1725,216.68,216.63,7.02]
[1758663818258,0.18,216.67,216.62,1.65646191]
[1758663818453,0.18,216.67,216.63,4.04820359]
[1758663818661,4.3327,216.67,216.6,8.67646191]
[1758663818861,0.18,216.67,216.6,7.02]
[1758663819861,4.3332,216.64,216.6,7.02]
[1758663820063,116.86,216.63,216.6,7.02]
[1758663820469,0.18,216.62,216.58,1.65646191]
[1758663820669,0.18,216.62,216.59,4.05014024]
[1758663820870,0.18,216.62,216.6,4.05014024]
[1758663821062,0.18,216.62,216.59,7.02]
[1758663821260,4.1535,216.62,216.51,3.81816569]
[1758663821566,64.6133,216.61,216.52,3.71454337]
[1758663821764,4.1546,216.56,216.51,1.65646191]
[1758663821960,116.82,216.55,216.51,1.65646191]
[1758663822473,116.82,216.55,216.51,8.67646191]
[1758663823068,116.82,216.55,216.48,1.65646191]
[1758663824165,4.155,216.54,216.47,7.02]
[1758663824373,4.155,216.54,216.46,1.65646191]
[1758663826270,4.155,216.54,216.44,8.67646191]
[1758663827472,4.1554,216.52,216.44,8.67646191]
[1758663827672,64.6374,216.53,216.38,7.02]
[1758663827971,64.6465,216.5,216.42,8.67646191]
[1758663828172,64.6465,216.5,216.42,1.65646191]
[1758663829873,118.87646191,216.52,216.39,7.02]
[1758663829874,118.87646191,216.52,216.4,1.65646191]
[1758663830074,64.6463,216.5,216.39,8.67646191]
[1758663830274,4.1567,216.45,216.39,8.67646191]
[1758663830474,117.18,216.44,216.4,7.02]
[1758663830673,66.29466191,216.53,216.4,7.02]
[1758663830874,117.16,216.52,216.42,1.65646191]
[1758663831775,4.1562,216.48,216.42,1.65646191]
[1758663832081,117.14,216.47,216.43,7.02]
[1758663832276,117.1,216.46,216.42,1.65646191]
[1758663833574,117.1,216.46,216.43,7.44]
[1758663833774,117.04,216.46,216.43,7.44]
[1758663833981,117.04,216.46,216.42,1.65646191]
[1758663834580,117.04,216.46,216.43,7.44]
[1758663835378,117.04,216.46,216.42,1.65646191]
[1758663835577,117.04,216.46,216.42,9.09646191]
[1758663838578,117.04,216.46,216.42,7.44]
[1758663839484,117.04,216.46,216.38,7.44]
[1758663839876,121.1967,216.46,216.38,7.44]
[1758663840077,116.76,216.45,216.38,7.44]
[1758663842987,120.9168,216.45,216.38,7.44]
[1758663844582,4.622,216.64,216.38,7.44]
[1758663844583,78.72779694,216.6,216.41,7.44]
[1758663844791,2.59122929,216.59,216.45,7.44]
[1758663844983,116.82,216.54,216.45,7.44]
[1758663845788,4.1552,216.53,216.45,7.44]
[1758663847789,120.9552,216.53,216.45,7.44]
[1758663848892,116.76,216.53,216.45,7.44]
[1758663849589,4.155,216.55,216.45,11.5965]
[1758663849788,71.455,216.55,216.46,7.44]
[1758663850393,4.155,216.55,216.46,7.44]
[1758663850788,4.155,216.55,216.46,11.5964]
[1758663850987,4.155,216.55,216.47,7.44]
[1758663855294,4.155,216.55,216.47,4.1562]
[1758663855597,4.155,216.55,216.48,7.01]
[1758663855997,4.1545,216.57,216.48,7.01]
[1758663857002,4.1548,216.56,216.48,7.01]
[1758663857303,116.62,216.58,216.48,7.01]
[1758663858798,4.155,216.55,216.48,7.01]
[1758663862795,4.1552,216.53,216.45,7.01]
[1758663865104,4.1556,216.51,216.45,7.01]
[1758663868011,4.1559,216.5,216.45,7.01]
[1758663868209,4.1559,216.5,216.42,7.6]
[1758663868408,109.32,216.51,216.42,7.6]
[1758663869815,4.1561,216.49,216.42,7.6]
[1758663875316,5.1294001,216.58,216.44,2.59122929]
[1758663875522,115.9,216.57,216.45,7.6]
[1758663875913,14.57679635,216.6,216.47,7.6]
[1758663876119,115.84,216.59,216.47,7.6]
[1758663876820,4.1547,216.56,216.48,4.156]
[1758663877025,4.1547,216.56,216.49,7.6]
[1758663878331,120.0343,216.58,216.49,7.6]
[1758663878628,14.57679635,216.6,216.46,7.6]
[1758663878629,115.88,216.59,216.46,7.6]
[1758663879021,14.57679635,216.6,216.46,7.6]
[1758663879224,115.86,216.59,216.46,11.40226502]
[1758663879523,119.9739,216.6,216.49,3.80226502]
[1758663879725,119.9739,216.6,216.5,7.6]
[1758663880626,4.1539,216.6,216.5,7.6]
[1758663880826,4.1539,216.6,216.53,7.6]
[1758663883322,4.1539,216.6,216.54,3.59852591]
[1758663883526,4.1542,216.59,216.55,3.59852591]
[1758663883724,4.1542,216.59,216.52,7.6]
[1758663883923,4.1542,216.59,216.53,3.5987731]
[1758663884131,4.1542,216.59,216.54,11.1987731]
[1758663884320,4.1542,216.59,216.54,7.6]
[1758663884926,64.599,216.66,216.49,7.95806502]
[1758663884927,64.5899,216.69,216.52,7.6]
[1758663885232,64.5899,216.69,216.48,64.651]
[1758663885233,115.62,216.67,216.54,7.6]
[1758663885529,115.62,216.67,216.55,3.59838249]
[1758663885727,4.1532,216.64,216.56,11.19838249]
[1758663885933,2.59122929,216.69,216.56,7.6]
[1758663886127,101.28,216.68,216.58,7.6]
[1758663886927,4.1527,216.66,216.58,7.6]
[1758663888034,4.1531,216.64,216.58,7.6]
[1758663892238,119.5531,216.64,216.58,7.6]
[1758663892940,4.1534,216.63,216.58,7.6]
[1758663893339,4.1534,216.63,216.55,7.74]
[1758663893638,4.1534,216.63,216.56,3.59268609]
[1758663893837,4.1534,216.63,216.55,7.74]
[1758663894038,4.1534,216.63,216.56,3.59268612]
[1758663894232,4.1534,216.63,216.57,7.74]
[1758663895030,119.4334,216.63,216.57,7.74]
[1758663895536,115.28,216.63,216.52,7.74]
[1758663895734,115.28,216.63,216.53,3.5916712]
[1758663895935,115.28,216.63,216.54,3.5916712]
[1758663896135,115.28,216.63,216.55,3.5916712]
[1758663896439,115.28,216.63,216.52,7.74]
[1758663896641,115.28,216.63,216.53,3.59151469]
[1758663896942,4.1542,216.59,216.54,11.33151469]
[1758663897137,4.1542,216.59,216.55,3.59151469]
[1758663897343,4.1542,216.59,216.54,7.74]
[1758663897540,4.1542,216.59,216.55,3.59119873]
[1758663897843,4.1542,216.59,216.51,7.74]
[1758663898141,119.4142,216.59,216.53,7.74]
[1758663898342,115.2,216.6,216.54,3.59079789]
[1758663898540,115.2,216.6,216.55,11.33079789]
[1758663898737,1.65642061,216.64,216.52,1.65642061]
[1758663898943,4.154,216.6,216.54,7.74]
[1758663899144,4.154,216.6,216.53,3.59022812]
[1758663899145,4.154,216.6,216.56,7.74]
[1758663899440,4.154,216.6,216.53,7.74]
[1758663899743,4.154,216.6,216.54,3.58997025]
[1758663899942,4.154,216.6,216.56,7.74]
[1758663900144,4.154,216.6,216.53,7.74]
[1758663900344,4.154,216.6,216.54,3.58935681]
[1758663900536,4.154,216.6,216.56,7.74]
[1758663901045,4.154,216.6,216.52,5.81172061]
[1758663901240,4.154,216.6,216.54,7.74]
[1758663901443,4.154,216.6,216.55,3.58935681]
[1758663901643,4.154,216.6,216.53,7.74]